bitfinex-derivatives/quotes_BNBF0:USTF0_20251225
["timestamp","ask_amount","ask_price","bid_price","bid_amount"]
[1766675080886,1.19399529,838.15,837.69,0.89210152]
[1766675081085,0.89466615,838.38,837.69,0.89210152]
[1766675081288,1.19399454,838.37,837.69,0.89210152]
[1766675081484,1.19399454,838.36,837.69,0.89210152]
[1766675081683,1.19399454,838.35,837.69,0.89210152]
[1766675081884,1.19399454,838.34,837.69,0.89210152]
[1766675082086,1.19399454,838.33,837.69,0.89210152]
[1766675082285,1.19399454,838.32,837.69,0.89210152]
[1766675082485,1.19399454,838.31,837.69,0.89210152]
[1766675082685,1.19399454,838.3,837.69,0.89210152]
[1766675082889,1.19399454,838.29,837.69,0.89210152]
[1766675083184,1.19399454,838.28,837.69,0.89210152]
[1766675083388,1.19399454,838.27,837.69,0.89210152]
[1766675083585,1.19399454,838.26,837.69,0.89210152]
[1766675083888,1.19399454,838.25,837.69,0.89210152]
[1766675084088,1.19399454,838.24,837.69,0.89210152]
[1766675084286,1.19399454,838.23,837.69,0.89210152]
[1766675084588,1.19399454,838.22,837.69,0.89210152]
[1766675084889,1.19399454,838.21,837.69,0.89210152]
[1766675085189,1.19399454,838.2,837.69,0.89210152]
[1766675085386,1.19399454,838.19,837.69,0.89210152]
[1766675085584,1.19399454,838.18,837.69,0.89210152]
[1766675085787,1.19399454,838.17,837.69,0.89210152]
[1766675085985,1.19399454,838.16,837.69,0.89210152]
[1766675086189,1.19399454,838.15,837.69,0.89210152]
[1766675086485,1.19399454,838.14,837.69,0.89210152]
[1766675086689,13.1113488,838.23,837.69,0.89210152]
[1766675086887,1.19399477,838.22,837.69,0.89210152]
[1766675087088,1.19399477,838.21,837.69,0.89210152]
[1766675087286,1.19399477,838.2,837.69,0.89210152]
[1766675087485,1.19399477,838.19,837.69,0.89210152]
[1766675087688,1.19399477,838.18,837.69,0.89210152]
[1766675087891,1.19399477,838.17,837.69,0.89210152]
[1766675088092,1.19399477,838.16,837.69,0.89210152]
[1766675088292,1.19399477,838.15,837.69,0.89210152]
[1766675088587,1.19399477,838.14,837.69,0.89210152]
[1766675088888,0.89466615,838.38,837.69,0.89210152]
[1766675089092,1.19399477,838.37,837.69,0.89210152]
[1766675089388,1.19399477,838.36,837.69,0.89210152]
[1766675089592,1.19399477,838.35,837.69,0.89210152]
[1766675089794,1.19399477,838.34,837.69,0.89210152]
[1766675089990,1.19399477,838.33,837.69,0.89210152]
[1766675090189,1.19399477,838.32,837.69,0.89210152]
[1766675090392,1.19399477,838.31,837.69,0.89210152]
[1766675090592,1.19399477,838.3,837.69,0.89210152]
[1766675090790,1.19399477,838.29,837.69,0.89210152]
[1766675090989,1.19399477,838.28,837.69,0.89210152]
[1766675091193,1.19399477,838.27,837.69,0.89210152]
[1766675091393,56.30889324,838.49,837.05,56.0776551]
[1766675091394,1.19399477,838.26,837.65,0.89210152]
[1766675091691,1.19399477,838.25,837.65,0.89210152]
[1766675091889,1.19399477,838.24,837.65,0.89210152]
[1766675092094,1.19399477,838.23,837.65,0.89210152]
[1766675092395,1.19399477,838.22,837.65,0.89210152]
[1766675092592,1.19399477,838.21,837.65,0.89210152]
[1766675092896,0.89466615,838.34,837.65,0.89210152]
[1766675092897,1.19399477,838.2,837.65,0.89210152]
[1766675093096,1.19399477,838.19,837.65,0.89210152]
[1766675093393,1.19399477,838.18,837.65,0.89210152]
[1766675093591,1.19399477,838.17,837.65,0.89210152]
[1766675093793,1.19399477,838.16,837.65,0.89210152]
[1766675093993,1.19399477,838.15,837.65,0.89210152]
[1766675094195,1.19399477,838.14,837.65,0.89210152]
[1766675094396,0.89466615,838.34,837.65,0.89210152]
[1766675094596,1.19399536,838.33,837.65,0.89210152]
[1766675094795,1.19399536,838.32,837.65,0.89210152]
[1766675094996,1.19399536,838.31,837.65,0.89210152]
[1766675095294,1.19399536,838.3,837.65,0.89210152]
[1766675095494,1.19399536,838.29,837.65,0.89210152]
[1766675095692,1.19399536,838.28,837.65,0.89210152]
[1766675095895,1.19399536,838.27,837.65,0.89210152]
[1766675096093,1.19399536,838.26,837.65,0.89210152]
[1766675096292,1.19399536,838.25,837.65,0.89210152]
[1766675096498,1.19399536,838.24,837.65,0.89210152]
[1766675096693,1.19399536,838.23,837.65,0.89210152]
[1766675096900,1.19399536,838.22,837.6,0.89210152]
[1766675097199,1.19399536,838.21,837.6,0.89210152]
[1766675097400,1.19399536,838.2,837.59,0.89210152]
[1766675097600,1.19399536,838.19,837.59,0.89210152]
[1766675097799,1.19399536,838.18,837.59,0.89210152]
[1766675097996,1.19399536,838.17,837.59,0.89210152]
[1766675098196,1.19399536,838.16,837.5,0.89210152]
[1766675098397,1.19399536,838.15,837.47,0.89210152]
[1766675098596,1.19399536,838.14,837.47,0.89210152]
[1766675098801,1.19399536,838.13,837.47,0.89210152]
[1766675099100,1.19399536,838.12,837.47,0.89210152]
[1766675099294,1.19399536,838.11,837.47,0.89210152]
[1766675099499,1.19399536,838.1,837.46,0.89210152]
[1766675099700,1.19399536,838.09,837.46,0.89210152]
[1766675099999,1.19399536,838.08,837.46,0.89210152]
[1766675100194,1.19399536,838.07,837.46,0.89210152]
[1766675100400,1.19399536,838.06,837.41,0.89210152]
[1766675100600,13.0826093,838.17,837.41,0.89210152]
[1766675100601,1.19399536,838.05,837.41,0.89210152]
[1766675100800,1.19399536,838.04,837.41,0.89210152]
[1766675101001,13.0826093,838.17,837.41,0.89210152]
[1766675101201,1.19427103,838.16,837.41,0.89210152]
[1766675101497,1.19427103,838.15,837.4,0.89210152]
[1766675101702,13.0826093,838.17,837.45,0.89210152]
[1766675101703,1.19427103,838.14,837.45,0.89210152]
[1766675101898,1.19427103,838.13,837.45,0.89210152]
[1766675102199,1.19427103,838.12,837.45,0.89210152]
[1766675102401,1.19427103,838.11,837.39,0.89210152]
[1766675102602,1.19427103,838.1,837.39,0.89210152]
[1766675102803,1.19427103,838.09,837.39,0.89210152]
[1766675103003,1.19427103,838.08,837.39,0.89210152]
[1766675103203,1.19427103,838.07,837.39,0.89210152]
[1766675103404,1.19427103,838.06,837.38,0.89210152]
[1766675103601,1.19427103,838.05,837.38,0.89210152]
[1766675103805,1.19427103,838.04,837.38,0.89210152]
[1766675104005,1.19427103,838.03,837.38,0.89210152]
[1766675104203,13.19331633,838.06,837.38,0.89210152]
[1766675104407,1.1943422,838.05,837.36,0.89210152]
[1766675104607,1.1943422,838.04,837.36,0.89210152]
[1766675104803,13.19331633,838.06,837.36,0.89210152]
[1766675105003,1.1943422,838.05,837.36,0.89210152]
[1766675105308,13.19331633,838.06,837.36,0.89210152]
[1766675105504,1.1943422,838.05,837.36,0.89210152]
[1766675105708,13.19331633,838.06,837.36,0.89210152]
[1766675105902,1.1943422,838.05,837.36,0.89210152]
[1766675106107,13.19331633,838.06,837.36,0.89210152]
[1766675106306,13.19331633,838.06,837.35,0.89210152]
[1766675107007,0.89466615,838.25,837.35,0.89210152]
[1766675107212,1.1943422,838.24,837.35,0.89210152]
[1766675107410,1.1943422,838.23,837.34,0.89210152]
[1766675107607,1.1943422,838.22,837.34,0.89210152]
[1766675107807,0.89466615,838.25,837.34,0.89210152]
[1766675107808,1.1943422,838.21,837.34,0.89210152]
[1766675108011,1.1943422,838.2,837.34,0.89210152]
[1766675108212,1.1943422,838.19,837.34,0.89210152]
[1766675108408,1.1943422,838.18,837.34,0.89210152]
[1766675108615,1.1943422,838.17,837.34,0.89210152]
[1766675108813,1.1943422,838.16,837.34,0.89210152]
[1766675109013,1.1943422,838.15,837.34,0.89210152]
[1766675109210,1.1943422,838.14,837.34,0.89210152]
[1766675109409,1.1943422,838.13,837.33,0.89210152]
[1766675109614,1.1943422,838.12,837.33,0.89210152]
[1766675109812,1.1943422,838.11,837.33,0.89210152]
[1766675110013,1.1943422,838.1,837.33,0.89210152]
[1766675110213,1.1943422,838.09,837.33,0.89210152]
[1766675110411,1.1943422,838.08,837.32,0.89210152]
[1766675110612,55.64507459,838.24,837.32,0.89210152]
[1766675110915,1.19363436,838.23,837.32,0.89210152]
[1766675111114,1.19363436,838.22,837.32,0.89210152]
[1766675111411,1.19363436,838.21,837.32,0.89210152]
[1766675111615,1.19363436,838.2,837.32,0.89210152]
[1766675111814,1.19363436,838.19,837.32,0.89210152]
[1766675112014,1.19363436,838.18,837.32,0.89210152]
[1766675112215,1.19363436,838.17,837.32,0.89210152]
[1766675112416,1.19363436,838.16,837.31,0.89210152]
[1766675112716,1.19363436,838.15,837.31,0.89210152]
[1766675112913,1.19363436,838.14,837.31,0.89210152]
[1766675113111,1.19363436,838.13,837.31,0.89210152]
[1766675113315,1.19363436,838.12,837.31,0.89210152]
[1766675113612,1.19363436,838.11,837.31,0.89210152]
[1766675113811,1.19363436,838.1,837.31,0.89210152]
[1766675114012,1.19363436,838.09,837.31,0.89210152]
[1766675114216,12.91949877,838.2,837.31,0.89210152]
[1766675114412,1.19314952,838.19,837.31,0.89210152]
[1766675114617,1.19314952,838.18,837.31,0.89210152]
[1766675114816,1.19314952,838.17,837.31,0.89210152]
[1766675115013,12.91949877,838.2,837.31,0.89210152]
[1766675115014,1.19314952,838.16,837.31,0.89210152]
[1766675115316,1.19314952,838.15,837.31,0.89210152]
[1766675115616,1.19314952,838.14,837.31,0.89210152]
[1766675115817,1.19314952,838.13,837.31,0.89210152]
[1766675116014,1.19314952,838.12,837.31,0.89210152]
[1766675116214,1.19314952,838.11,837.31,0.89210152]
[1766675116412,1.19314952,838.1,837.31,0.89210152]
[1766675116614,0.89466615,838.28,837.31,0.89210152]
[1766675116813,1.19300294,838.27,837.31,0.89210152]
[1766675117016,1.19300294,838.26,837.31,0.89210152]
[1766675117216,1.19300294,838.25,837.31,0.89210152]
[1766675117515,1.19300294,838.24,837.3,0.89210152]
[1766675117715,1.19300294,838.23,837.3,0.89210152]
[1766675117918,1.19300294,838.22,837.3,0.89210152]
[1766675118217,1.19300294,838.21,837.3,0.89210152]
[1766675118417,1.19300294,838.2,837.3,0.89210152]
[1766675118620,1.19300294,838.19,837.3,0.89210152]
[1766675118819,1.19300294,838.18,837.3,0.89210152]
[1766675119016,1.19300294,838.17,837.3,0.89210152]
[1766675119320,1.19300294,838.16,837.3,0.89210152]
[1766675119516,1.19300294,838.15,837.3,0.89210152]
[1766675119815,1.19300294,838.14,837.3,0.89210152]
[1766675120020,1.19300294,838.13,837.3,0.89210152]
[1766675120218,1.19300294,838.12,837.3,0.89210152]
[1766675120521,1.19300294,838.11,837.3,0.89210152]
[1766675120818,1.19300294,838.1,837.3,0.89210152]
[1766675121017,0.89466615,838.29,837.3,0.89210152]
[1766675121218,1.19285915,838.28,837.3,0.89210152]
[1766675121426,1.19285915,838.27,837.3,0.89210152]
[1766675121621,1.19285915,838.26,837.3,0.89210152]
[1766675121818,1.19285915,838.25,837.3,0.89210152]
[1766675122017,1.19285915,838.24,837.3,0.89210152]
[1766675122221,1.19285915,838.23,837.3,0.89210152]
[1766675122422,1.19285915,838.23,837.15,1.19135671]
[1766675122423,0.89466615,838.17,837.18,0.89210152]
[1766675122623,2.0875253,838.16,837.17,0.89210152]
[1766675122918,1.19285915,838.15,837.19,0.89210152]
[1766675123123,1.19285915,838.14,837.2,0.89210152]
[1766675123325,1.19285915,838.13,837.27,0.89210152]
[1766675123525,55.01730855,838.21,837.27,0.89210152]
[1766675124124,55.01730855,838.21,837.29,0.89210152]
[1766675125824,0.89466615,838.29,837.29,0.89210152]
[1766675126325,0.89466615,838.3,837.3,0.89210152]
[1766675128326,0.89466615,838.3,837.31,0.89210152]
[1766675129328,0.89466615,838.29,837.31,0.89210152]
[1766675132232,55.53456781,838.21,837.31,0.89210152]
[1766675132435,64.56191704,838.21,837.32,0.89210152]
[1766675134337,64.56191704,838.21,837.33,0.89210152]
[1766675135735,0.89466615,838.27,837.33,0.89210152]
[1766675136335,0.89466615,838.26,837.34,0.89210152]
[1766675137136,9.77561477,838.26,837.34,0.89210152]
[1766675137540,9.77561477,838.26,837.35,0.89210152]
[1766675138339,0.89466615,838.25,837.35,0.89210152]
[1766675139342,0.89466615,838.25,837.27,13.09179459]
[1766675139343,55.82668492,838.22,837.36,0.89210152]
[1766675139543,55.82668492,838.22,837.35,0.89210152]
[1766675140437,0.89466615,838.21,837.37,0.89210152]
[1766675141344,0.89466615,838.2,837.38,0.89210152]
[1766675142443,55.82668492,838.22,836.79,56.2512992]
[1766675142444,0.89466615,838.18,837.4,0.89210152]
[1766675144345,0.20756231,838.49,837.41,0.89210152]
[1766675144346,0.89466615,838.17,837.41,0.89210152]
[1766675144947,8.94863742,838.17,837.46,0.89210152]
[1766675146249,8.94863742,838.17,837.48,0.89210152]
[1766675146450,8.94863742,838.17,837.52,0.89210152]
[1766675148349,0.20756231,838.49,836.62,2.98678027]
[1766675148350,1.19402937,838.48,837.57,0.89210152]
[1766675149354,1.19402937,838.48,837.56,0.89210152]
[1766675150255,1.40159168,838.49,837.56,0.89210152]
[1766675150755,54.24077078,838.41,837.56,0.89210152]
[1766675150956,54.24077078,838.41,837.6,0.89210152]
[1766675151354,54.24077078,838.41,837.59,0.89210152]
[1766675151953,0.89441659,838.33,837.54,0.89210152]
[1766675153259,0.89441659,838.34,837.53,0.89210152]
[1766675156265,0.89441659,838.35,837.52,0.89210152]
[1766675159268,0.89441659,838.36,837.51,0.89210152]
[1766675161269,0.89441659,838.34,837.49,0.89210152]
[1766675162969,55.42846967,838.27,837.49,0.89210152]
[1766675163169,64.35059838,838.27,837.49,0.89210152]
[1766675163368,64.35059838,838.27,837.45,0.89210152]
[1766675166574,0.89441659,838.3,837.45,0.89210152]
[1766675167273,0.89441659,838.3,837.44,0.89210152]
[1766675167572,0.89441659,838.3,837.45,0.89210152]
[1766675169477,0.89441659,838.31,837.46,0.89210152]
[1766675172776,0.89441659,838.25,837.4,0.89210152]
[1766675176377,0.89441659,838.24,837.4,0.89210152]
[1766675176783,9.89955626,838.24,837.4,0.89210152]
[1766675177283,9.89955626,838.24,837.41,0.89210152]
[1766675179983,0.89441659,838.24,837.41,0.89210152]
[1766675181881,1.19402937,838.39,837.0,54.8399443]
[1766675181882,0.89441659,838.27,837.44,0.89210152]
[1766675182383,55.43841855,838.43,837.44,0.89210152]
[1766675182384,0.89441659,838.26,837.44,0.89210152]
[1766675183283,0.89441659,838.26,837.45,0.89210152]
[1766675186386,0.89441659,838.25,837.46,0.89210152]
[1766675187490,9.8956093,838.25,837.46,0.89210152]
[1766675188292,0.89441659,838.24,837.46,0.89210152]
[1766675189593,0.89441659,838.24,837.47,0.89210152]
[1766675190292,0.89441659,838.23,837.47,0.89210152]
[1766675191090,0.2076775,838.05,837.47,0.89210152]
[1766675192295,0.2076775,838.05,837.42,0.89210152]
[1766675193995,0.2076775,838.05,836.58,0.01340656]
[1766675193996,0.2076775,838.05,837.34,0.89210152]
[1766675194195,0.2076775,838.05,837.38,0.89210152]
[1766675194395,0.2076775,838.05,837.37,0.89210152]
[1766675194595,0.89441659,838.03,837.25,0.89210152]
[1766675195290,0.2076775,838.05,837.23,0.89210152]
[1766675195291,1.10209409,838.05,837.23,0.89210152]
[1766675196294,0.2076775,838.05,837.22,0.89210152]
[1766675197397,0.2076775,838.05,837.21,0.89210152]
[1766675198193,0.2076775,838.05,837.2,0.89210152]
[1766675199194,0.2076775,838.05,837.19,0.89210152]
[1766675199498,0.2076775,838.05,837.16,0.89210152]
[1766675201294,0.2076775,838.05,837.15,0.89210152]
[1766675203200,0.2076775,838.05,837.14,0.89210152]
[1766675204598,0.2076775,838.05,837.19,0.89210152]
[1766675205000,0.2076775,838.05,837.19,14.02361564]
[1766675205196,0.2076775,838.05,837.19,13.13151412]
[1766675208602,0.2076775,838.05,837.04,1.19135671]
[1766675208798,0.2076775,838.05,837.19,0.8905171]
[1766675211199,0.2076775,838.05,837.11,0.8905171]
[1766675211400,0.89212792,837.97,836.98,0.8905171]
[1766675211604,0.89212792,837.92,836.93,0.8905171]
[1766675211803,0.89212792,837.91,836.92,0.8905171]
[1766675212205,0.89212792,837.92,836.91,0.8905171]
[1766675213301,0.89212792,837.93,836.9,0.8905171]
[1766675214403,0.89212792,837.94,836.89,0.8905171]
[1766675215201,0.89212792,837.95,836.89,0.8905171]
[1766675216305,0.89212792,837.95,836.73,1.19135671]
[1766675216306,0.89212792,837.95,836.88,0.8905171]
[1766675216507,0.89212792,837.96,836.88,0.8905171]
[1766675216902,0.89212792,837.95,836.88,0.8905171]
[1766675217400,0.89212792,837.96,836.88,0.8905171]
[1766675218300,0.89212792,837.96,836.87,0.8905171]
[1766675219206,0.89212792,837.97,836.87,0.8905171]
[1766675220603,0.89212792,837.99,836.88,0.8905171]
[1766675220808,0.89212792,838.01,836.9,0.8905171]
[1766675221707,0.89212792,838.01,836.9,13.90555688]
[1766675225009,0.89212792,838.01,836.9,0.8905171]
[1766675228313,0.89212792,838.01,836.91,0.8905171]
[1766675229309,0.89212792,838.0,836.91,0.8905171]
[1766675229709,0.89212792,838.01,836.92,0.8905171]
[1766675230214,0.89212792,838.0,836.92,0.8905171]
[1766675230414,0.89109137,838.0,836.92,0.88986519]
[1766675231309,0.89109137,838.0,836.93,0.88986519]
[1766675231713,9.02577384,838.0,836.94,0.88986519]
[1766675232416,9.91686521,838.0,836.95,0.88986519]
[1766675233312,0.89109137,837.99,836.96,0.88986519]
[1766675233516,0.89109137,837.98,836.95,0.88986519]
[1766675233713,0.89109137,837.96,836.93,0.88986519]
[1766675234212,0.89109137,837.96,836.94,0.88986519]
[1766675235415,0.89109137,837.94,836.95,0.88986519]
[1766675236214,0.89109137,837.93,836.96,0.88986519]
[1766675237218,0.89109137,837.92,836.97,0.88986519]
[1766675238320,0.89109137,837.91,836.98,0.88986519]
[1766675239417,0.89109137,837.9,836.99,0.88986519]
[1766675242518,0.89109137,837.9,837.0,0.88986519]
[1766675243323,0.89109137,837.99,837.09,0.88986519]
[1766675243519,0.89109137,838.0,837.1,0.88986519]
[1766675243823,1.09876887,838.05,837.15,0.88986519]
[1766675244321,1.09876887,838.05,837.16,0.88986519]
[1766675246724,0.2076775,838.05,837.24,0.88986519]
[1766675246924,0.2076775,838.05,837.25,0.88986519]
[1766675248420,0.2076775,838.05,837.24,0.88986519]
[1766675248821,0.2076775,838.05,837.25,0.88986519]
[1766675249420,0.2076775,838.05,837.24,0.88986519]
[1766675250226,0.2076775,838.05,837.25,0.88986519]
[1766675250424,0.2076775,838.05,837.24,0.88986519]
[1766675257429,0.2076775,838.05,837.23,0.88986519]
[1766675259633,0.2076775,838.05,837.1,1.19135671]
[1766675259933,9.16110721,838.05,836.59,56.21459873]
[1766675261133,9.16110721,838.05,835.75,0.01298107]
[1766675261332,9.16110721,838.05,834.91,0.00959664]
[1766675262736,9.16110721,838.05,837.25,0.89136338]
[1766675263035,0.2076775,838.05,837.25,0.89136338]
[1766675269338,0.2076775,838.05,837.26,0.89136338]
[1766675274347,0.2076775,838.05,837.27,0.89136338]
[1766675278449,0.2076775,838.05,837.28,0.89136338]
[1766675280346,0.2076775,838.05,837.29,0.89136338]
[1766675281351,0.2076775,838.05,837.3,0.89136338]
[1766675282351,0.2076775,838.05,837.31,0.89136338]
[1766675283252,0.2076775,838.05,837.32,0.89136338]
[1766675284353,0.2076775,838.05,837.34,0.89136338]
[1766675288457,0.2076775,838.05,837.31,0.89136338]
[1766675288754,0.2076775,838.05,837.32,0.89136338]
[1766675288953,0.2076775,838.05,837.34,0.89136338]
[1766675289153,0.2076775,838.05,837.36,0.89136338]
[1766675289353,0.2076775,838.05,837.41,0.89136338]
[1766675289553,0.2076775,838.05,837.44,0.89136338]
[1766675289755,0.2076775,838.05,837.46,0.89136338]
[1766675290355,0.2076775,838.05,837.45,0.89136338]
[1766675291255,0.2076775,838.05,837.44,0.89136338]
[1766675291560,0.2076775,838.05,837.45,0.89136338]
[1766675292260,0.2076775,838.05,837.44,0.89136338]
[1766675293261,0.2076775,838.05,837.47,0.89136338]
[1766675293462,0.2076775,838.05,837.46,0.89136338]
[1766675294061,0.2076775,838.05,837.48,0.89136338]
[1766675294258,0.2076775,838.05,837.53,0.89136338]
[1766675295362,0.2076775,838.05,837.52,0.89136338]
[1766675296361,0.2076775,838.05,837.51,0.89136338]
[1766675297257,0.2076775,838.05,837.5,0.89136338]
[1766675298256,0.2076775,838.05,837.49,0.89136338]
[1766675298860,0.2076775,838.05,837.19,1.78272676]
[1766675298861,0.2076775,838.05,837.47,0.89136338]
[1766675300262,0.2076775,838.05,837.46,0.89136338]
[1766675302361,0.2076775,838.05,837.45,0.89136338]
[1766675304466,0.2076775,838.05,837.44,0.89136338]
[1766675307464,0.2076775,838.05,837.43,0.89136338]
[1766675307868,0.2076775,838.05,837.44,0.89136338]
[1766675308366,0.2076775,838.05,837.43,0.89136338]
[1766675317370,0.2076775,838.05,837.44,0.89136338]
[1766675321574,0.2076775,838.05,837.29,1.18848451]
[1766675321575,0.2076775,838.05,837.45,0.89136338]
[1766675321980,0.2076775,838.05,837.44,0.89136338]
[1766675322377,0.2076775,838.05,837.45,0.89136338]
[1766675324284,0.2076775,838.05,837.46,0.89136338]
[1766675324681,0.2076775,838.05,837.46,13.80568316]
[1766675327283,0.2076775,838.05,837.47,0.89136338]
[1766675328385,0.2076775,838.05,837.48,0.89136338]
[1766675330392,0.2076775,838.05,837.49,0.89136338]
[1766675331488,0.2076775,838.05,837.5,0.89136338]
[1766675332292,0.2076775,838.05,837.51,0.89136338]
[1766675332492,0.2076775,838.05,837.52,0.89136338]
[1766675333199,0.2076775,838.05,837.5,13.24217085]
[1766675335499,0.2076775,838.05,837.47,0.89136338]
[1766675341704,0.2076775,838.05,837.37,0.89136338]
[1766675341907,0.2076775,838.05,837.32,0.89136338]
[1766675342405,0.2076775,838.05,836.48,0.00895713]
[1766675342406,0.2076775,838.05,837.31,0.89136338]
[1766675343401,0.2076775,838.05,837.3,0.89136338]
[1766675344302,0.2076775,838.05,837.29,0.89136338]
[1766675346203,0.2076775,838.05,837.33,0.89136338]
[1766675346402,0.2076775,838.05,837.45,0.89136338]
[1766675347706,0.2076775,838.05,837.46,0.89136338]
[1766675354306,0.2076775,838.05,837.51,0.89136338]
[1766675361110,0.2076775,838.05,837.49,0.89136338]
[1766675365519,0.2076775,838.05,837.46,0.89136338]
[1766675370920,0.2076775,838.05,837.51,0.89136338]
[1766675371123,0.2076775,838.05,837.55,0.89136338]
[1766675371622,0.2076775,838.05,837.56,0.89136338]
[1766675371922,0.2076775,838.05,837.58,0.89136338]
[1766675372321,0.2076775,838.05,837.63,0.89136338]
[1766675374324,0.2076775,838.05,837.62,0.89136338]
[1766675375025,0.2076775,838.05,837.64,0.89136338]
[1766675375421,0.2076775,838.05,837.63,0.89136338]
[1766675377328,0.2076775,838.05,837.62,0.89136338]
[1766675377729,0.2076775,838.05,837.61,0.89136338]
[1766675378327,0.2076775,838.05,837.6,0.89136338]
[1766675379831,0.2076775,838.05,837.61,0.89136338]
[1766675380428,0.2076775,838.05,837.6,0.89136338]
[1766675385436,0.2076775,838.05,837.55,0.89136338]
[1766675387535,0.2076775,838.05,837.56,0.89136338]
[1766675389434,0.2076775,838.05,837.57,0.89136338]
[1766675390334,0.2076775,838.05,837.58,0.89136338]
[1766675391837,0.2076775,838.05,837.57,0.89136338]
[1766675392038,0.2076775,838.05,837.56,0.89136338]
[1766675392233,0.2076775,838.05,837.4,1.18848451]
[1766675392234,0.89513723,838.37,837.53,0.89136338]
[1766675392538,0.20765768,837.97,837.5,0.89136338]
[1766675392733,0.89513723,838.34,837.5,0.89136338]
[1766675393135,0.20766511,837.97,837.5,0.89136338]
[1766675393332,8.9636085,837.98,837.5,0.89136338]
[1766675393739,0.20766511,837.97,837.5,0.89136338]
[1766675398738,9.00468062,838.04,837.5,0.89136338]
[1766675398944,0.89513723,838.46,837.62,0.89136338]
[1766675399142,0.20765148,838.27,837.64,0.89136338]
[1766675399338,0.20765148,838.27,837.7,0.89136338]
[1766675401338,0.20765148,838.27,837.69,0.89136338]
[1766675403243,0.20765148,838.27,837.68,0.89136338]
[1766675405344,0.20765148,838.27,837.67,0.89136338]
[1766675410452,0.20765148,838.27,837.68,0.89136338]
[1766675411456,0.20765148,838.27,837.68,13.85568677]
[1766675415456,0.20765148,838.27,837.69,0.89136338]
[1766675415653,0.20765148,838.27,837.7,0.89136338]
[1766675416253,0.20765148,838.27,837.73,0.89136338]
[1766675419358,0.20765148,838.27,837.72,0.89136338]
[1766675421962,0.20765148,838.27,837.79,0.89136338]
[1766675423164,0.20765148,838.27,837.78,0.89136338]
[1766675425163,0.20765148,838.27,837.77,0.89136338]
[1766675428064,0.20765148,838.27,837.76,0.89136338]
[1766675437366,0.20765148,838.27,837.77,0.89136338]
[1766675438367,0.20765148,838.27,837.78,0.89136338]
[1766675440472,0.20765148,838.27,837.79,0.89136338]
[1766675441468,0.20765148,838.27,837.8,0.89136338]
[1766675442372,0.20765148,838.27,837.82,0.89136338]
[1766675443472,0.20765148,838.27,837.83,0.89136338]
[1766675449173,0.20765148,838.27,837.84,0.89136338]
[1766675457589,0.20765148,838.27,837.83,0.89136338]
[1766675458291,0.20765148,838.27,837.82,0.89136338]
[1766675459092,0.20765148,838.27,837.83,0.89136338]
[1766675461093,0.20765148,838.27,837.84,0.89136338]
[1766675465102,0.20765148,838.27,837.85,0.89136338]
[1766675466202,0.20765148,838.27,837.9,0.89136338]
[1766675471202,0.89513723,838.63,837.9,0.89136338]
[1766675471502,0.20757531,838.39,837.9,0.89136338]
[1766675471806,9.31987484,838.39,837.9,0.89136338]
[1766675475205,0.20757531,838.39,837.9,0.89136338]
[1766675481912,0.20757531,838.39,837.89,0.89136338]
[1766675508232,0.20757531,838.39,837.9,0.89136338]
[1766675508633,0.20757531,838.39,837.89,0.89136338]
[1766675509131,0.20757531,838.39,837.9,0.89136338]
[1766675509528,0.20757531,838.39,837.06,0.01241562]
[1766675509529,0.20757531,838.39,837.86,0.89136338]
[1766675511330,0.20757531,838.39,837.87,0.89136338]
[1766675523240,0.20757531,838.39,837.82,0.89136338]
[1766675523843,0.20757531,838.39,837.8,0.89136338]
[1766675524344,0.20757531,838.39,837.79,0.89136338]
[1766675530251,0.20757531,838.39,837.78,0.89136338]
[1766675535162,0.20757531,838.39,837.63,1.18848451]
[1766675535163,0.20757531,838.39,837.79,0.89136338]
[1766675541568,0.20757531,838.39,837.82,0.89136338]
[1766675544567,0.20757531,838.39,837.83,0.89136338]
[1766675545268,0.20757531,838.39,837.83,13.80115489]
[1766675549478,0.20757531,838.39,837.83,0.89136338]
[1766675557079,0.20757531,838.39,836.99,0.01377192]
[1766675557080,0.20757531,838.39,837.84,0.89136338]
[1766675567585,0.20757531,838.39,837.69,1.18848451]
[1766675567586,0.20757531,838.39,837.85,0.89136338]
[1766675571292,0.20757531,838.39,837.7,1.18848451]
[1766675571492,0.20757531,838.39,837.85,0.890815]
[1766675574294,0.89435466,838.61,837.85,0.890815]
[1766675574495,0.89435466,838.63,837.87,0.890815]
[1766675574695,0.2075685,838.48,837.87,0.890815]
[1766675574889,9.3284533,838.48,837.87,13.76700877]
[1766675579100,0.2075685,838.48,837.87,0.890815]
[1766675579301,0.2075685,838.48,837.88,0.890815]
[1766675583405,0.2075685,838.48,837.9,0.890815]
[1766675593215,0.2075685,838.48,837.89,0.890815]
[1766675595116,0.2075685,838.48,837.74,1.18848451]
[1766675595117,0.2075685,838.48,837.9,0.890815]
[1766675595313,0.2075685,838.48,837.89,0.890815]
[1766675597218,0.2075685,838.48,837.9,0.890815]
[1766675597719,0.2075685,838.48,837.88,0.890815]
[1766675609121,0.2075685,838.48,837.89,0.890815]
[1766675612224,0.2075685,838.48,837.9,0.890815]
[1766675613021,0.2075685,838.48,837.89,0.890815]
[1766675613225,0.2075685,838.48,837.9,0.890815]
[1766675614626,0.2075685,838.48,837.92,0.890815]